bitfinex/quotes_ETHUSD_20250904
["timestamp","ask_amount","ask_price","bid_price","bid_amount"]
[1756995953917,4.087,4358.2,4357.5,2.29489386]
[1756995954402,4.086,4358.3,4358.2,2.29452526]
[1756995954604,4.8534,4358.3,4358.0,2.29462172]
[1756995954803,0.4636,4358.2,4357.4,2.29494652]
[1756995954978,1.1325,4358.2,4357.3,0.004]
[1756995955185,1.1325,4358.2,4357.9,2.29463537]
[1756995955501,0.4626,4358.1,4357.4,2.29494652]
[1756995955711,0.4626,4358.1,4358.0,2.29463056]
[1756995956013,0.7674,4358.1,4358.0,2.29463056]
[1756995956189,1.92184,4358.1,4357.9,2.29463121]
[1756995956388,1.45924,4358.1,4357.9,2.29463121]
[1756995956575,0.4626,4358.0,4357.9,2.29463121]
[1756995956777,0.4626,4358.0,4357.4,2.29494652]
[1756995957124,0.4626,4358.0,4357.8,2.29472522]
[1756995957429,1.033004,4358.0,4357.8,2.29472522]
[1756995958321,1.033004,4358.0,4357.9,2.29468321]
[1756995958322,0.570404,4358.0,4357.9,2.29468321]
[1756995958607,2.1536,4358.6,4357.9,2.29468321]
[1756995958608,4.086,4360.7,4358.7,2.29426205]
[1756995958794,0.1144,4359.4,4358.7,2.29426205]
[1756995958974,0.1144,4359.4,4358.7,2.70616205]
[1756995959174,0.1144,4359.4,4358.7,3.43046205]
[1756995959896,0.1144,4359.7,4358.7,6.89966205]
[1756995960475,0.1144,4359.7,4359.6,2.29378842]
[1756995960877,0.1144,4359.7,4359.1,2.29400121]
[1756995960878,0.1144,4359.7,4359.1,0.1144]
[1756995961076,0.1144,4359.7,4359.2,2.29399889]
[1756995961278,0.1144,4359.7,4359.6,2.29378842]
[1756995962226,0.1144,4359.7,4358.9,0.7975]
[1756995962408,0.8747,4359.7,4359.2,2.29399846]
[1756995962609,1.1618,4359.6,4358.9,0.1144]
[1756995962988,0.4255,4359.0,4358.9,2.29412313]
[1756995963194,0.1144,4359.0,4358.9,2.29412313]
[1756995964101,0.1144,4359.0,4358.9,2.59692313]
[1756995964293,0.1144,4359.0,4358.9,3.28002313]
[1756995964494,0.1144,4359.0,4358.9,3.74632313]
[1756995964829,4.11,4359.8,4359.7,2.2937358]
[1756995964991,4.11,4359.8,4358.9,1.1494]
[1756995965192,0.1144,4359.6,4359.5,2.29384103]
[1756995966015,0.8747,4359.6,4358.7,5.40865001]
[1756995966331,0.1144,4359.6,4359.5,2.29384103]
[1756995966699,0.025,4359.8,4359.7,2.2937358]
[1756995967114,0.4505,4359.8,4359.0,0.7975]
[1756995967312,1.1840024,4359.7,4358.4,0.6831]
[1756995967518,0.1144,4359.1,4359.0,2.29410415]
[1756995968424,0.1144,4359.1,4359.0,2.59690415]
[1756995968993,0.1144,4359.4,4359.3,2.29394627]
[1756995970025,0.1144,4359.4,4359.3,2.59674627]
[1756995970739,0.025,4359.8,4359.7,2.2937358]
[1756995971125,0.8997,4359.8,4359.7,2.2937358]
[1756995971291,0.1394,4359.8,4359.7,2.2937358]
[1756995971706,0.025,4359.8,4359.7,3.2796358]
[1756995972025,0.1219873,4361.4,4359.7,0.1144]
[1756995972026,4.083,4361.3,4359.7,0.1144]
[1756995972243,0.7126,4360.7,4360.5,2.29328678]
[1756995972526,0.4255,4360.6,4360.4,2.29336714]
[1756995972695,0.4255,4360.6,4358.7,0.6831]
[1756995972696,3.6438,4360.5,4358.7,0.6831]
[1756995972891,3.4714024,4360.4,4358.8,2.29420941]
[1756995973094,3.4714024,4360.4,4358.3,6.37747056]
[1756995973095,1.07490024,4360.3,4358.3,6.37747056]
[1756995973335,1.69,4360.5,4358.3,6.37747056]
[1756995973336,4.083,4360.2,4359.6,2.29377385]
[1756995973525,4.083,4360.2,4359.2,0.6831]
[1756995973729,4.083,4360.2,4360.0,2.29357013]
[1756995973925,0.3111,4360.1,4360.0,2.29357798]
[1756995974507,0.7603,4360.1,4360.0,2.29357798]
[1756995974709,0.7603,4360.1,4358.8,0.029]
[1756995974710,1.95733,4360.1,4358.8,0.029]
[1756995974909,1.95733,4360.1,4359.0,3.0]
[1756995975109,1.95733,4360.1,4359.8,2.29367886]
[1756995975408,0.4492,4360.0,4359.9,2.29361489]
[1756995975622,1.053333,4360.0,4358.9,5.9772436]
[1756995975933,1.053333,4360.0,4359.8,2.29365415]
[1756995976227,4.8423,4359.9,4359.7,2.29372327]
[1756995976394,1.1618,4359.8,4358.8,0.029]
[1756995976599,0.0222024,4359.7,4358.9,2.29415678]
[1756995976799,1.23627333,4359.6,4358.9,2.29415678]
[1756995976997,1.23627333,4359.6,4359.1,2.29401412]
[1756995977224,4.082,4359.9,4358.8,0.029]
[1756995977425,4.082,4359.9,4359.5,2.29381226]
[1756995977727,4.082,4359.9,4359.7,2.2937358]
[1756995977728,0.4492,4359.8,4359.7,2.2937358]
[1756995977928,4.3923,4359.8,4359.7,2.2937358]
[1756995978367,4.082,4359.8,4359.7,2.2937358]
[1756995978850,0.4492,4360.1,4359.7,2.2937358]
[1756995979132,0.3111,4359.8,4359.7,2.2937358]
[1756995979334,0.7603,4359.8,4358.8,0.029]
[1756995979633,4.082,4359.7,4359.5,2.29381971]
[1756995979941,4.082,4359.7,4358.8,0.029]
[1756995980105,4.082,4359.7,4359.3,2.29389404]
[1756995980306,0.41628,4360.1,4359.7,2.29368961]
[1756995980547,2.1392,4360.5,4359.9,2.29358626]
[1756995980548,4.082,4360.0,4359.9,2.29358626]
[1756995980712,4.082,4360.0,4359.2,2.29398595]
[1756995980713,0.4492,4360.1,4360.0,2.29357798]
[1756995980956,4.082,4360.0,4359.8,2.29366291]
[1756995981408,0.3111,4359.9,4359.8,2.29366291]
[1756995981705,0.4492,4360.3,4360.0,2.29356185]
[1756995981844,0.7136,4360.2,4359.0,0.6831]
[1756995982051,3.7752,4360.1,4359.7,2.29369065]
[1756995982250,0.3111,4359.8,4359.6,2.29377727]
[1756995982449,0.3111,4359.8,4358.8,2.32319523]
[1756995982450,0.001,4360.2,4360.0,0.3028]
[1756995982642,0.001,4360.2,4360.1,5.29352537]
[1756995982844,0.001,4360.2,4360.1,6.09102537]
[1756995983073,0.001,4360.2,4360.1,3.39382537]
[1756995984147,0.001,4360.2,4360.1,2.71072537]
[1756995984346,0.001,4360.2,4360.1,3.27942537]
[1756995984978,0.001,4360.2,4360.1,2.59632537]
[1756995985576,0.001,4360.2,4360.1,3.27942537]
[1756995985963,0.001,4360.2,4360.1,2.59632537]
[1756995986303,0.001,4360.2,4360.1,2.29352537]
[1756995986954,0.7613,4360.2,4360.1,2.29352537]
[1756995987658,5.5539,4360.2,4358.9,0.17521401]
[1756995987854,0.55539,4360.1,4358.8,3.01256341]
[1756995988189,0.55539,4360.1,4359.7,2.29368566]
[1756995988405,0.3111,4359.8,4359.4,2.29389208]
[1756995988590,0.4492,4359.7,4359.6,2.29374506]
[1756995988780,0.7603,4359.7,4359.6,2.29374506]
[1756995988977,0.7603,4359.7,4359.5,2.29383604]
[1756995989176,1.1618,4359.6,4358.8,2.32316346]
[1756995989379,0.4492,4359.5,4359.0,2.29406417]
[1756995989578,0.3111,4359.1,4358.8,0.029]
[1756995989885,4.08,4359.0,4358.8,0.029]
[1756995990089,5.2418,4359.0,4358.8,0.029]
[1756995990307,0.7416,4358.9,4358.8,0.029]
[1756995990670,2.00472,4358.9,4358.8,0.029]
[1756995990996,4.29887678,4358.9,4358.8,0.029]
[1756995991173,8.09087678,4358.9,4358.8,0.029]
[1756995991805,12.17087678,4358.9,4358.8,0.029]
[1756995992579,0.84792,4358.9,4358.8,0.029]
[1756995992776,4.3745,4358.9,4358.8,0.029]
[1756995993448,0.2945,4358.9,4358.8,0.029]
[1756995993774,4.8216,4358.9,4358.8,0.029]
[1756995994268,0.7416,4358.9,4358.8,0.029]
[1756995994604,4.3745,4358.9,4358.8,0.029]
[1756995994802,0.0222024,4359.2,4358.8,0.029]
[1756995995098,0.2945,4358.9,4358.8,0.029]
[1756995995270,0.3167024,4358.9,4358.8,0.029]
[1756995995469,1.5657,4358.9,4358.8,0.029]
[1756995995678,2.13027,4358.9,4358.8,0.029]
[1756995995871,1.42057,4358.9,4358.8,0.029]
[1756995996087,5.50057,4358.9,4358.8,0.029]
[1756995996492,4.4889,4358.9,4358.8,0.029]
[1756995996800,5.6457,4358.9,4358.8,0.029]
[1756995998001,7.93985678,4358.9,4358.8,0.029]
[1756995998573,8.73185678,4358.9,4358.8,0.029]
[1756995999017,6.4377,4358.9,4358.8,0.029]
[1756995999224,9.37562678,4358.9,4358.8,0.029]
[1756996000275,12.37562678,4358.9,4358.8,0.029]
[1756996000804,12.49369897,4358.9,4358.8,0.029]
[1756996001007,7.50362678,4358.9,4358.8,0.029]
[1756996001212,11.58362678,4358.9,4358.8,0.029]
[1756996001416,12.37562678,4358.9,4358.8,0.029]
[1756996002219,12.49357212,4358.9,4358.8,1e-08]
[1756996002391,8.41357212,4358.9,4358.8,1e-08]
[1756996002596,12.49357212,4358.9,4358.8,1e-08]
[1756996003524,12.49277212,4358.9,4358.8,1e-08]
[1756996005534,3.08641997,4358.4,4358.3,0.004]
[1756996005707,12.53109913,4358.4,4358.3,0.004]
[1756996005905,13.96019673,4358.4,4358.3,0.004]
[1756996006522,13.96119673,4358.4,4358.3,0.004]
[1756996007864,13.25149673,4358.4,4358.3,0.004]
[1756996008212,13.96119673,4358.4,4358.3,0.004]
[1756996008638,9.88019673,4358.4,4358.3,0.004]
[1756996008960,7.63689673,4358.4,4358.3,0.004]
[1756996009119,12.45949673,4358.4,4358.3,0.004]
[1756996009459,13.96119673,4358.4,4358.3,0.004]
[1756996009809,13.25149673,4358.4,4358.3,0.004]
[1756996010213,8.72339673,4358.4,4358.3,0.004]
[1756996010453,12.80439673,4358.4,4358.3,0.004]
[1756996011021,10.21547676,4358.4,4358.3,0.004]
[1756996011351,12.50989673,4358.4,4358.3,0.004]
[1756996011658,10.21547676,4358.4,4358.3,0.004]
[1756996012550,12.50989673,4358.4,4358.3,0.004]
[1756996012916,10.21547676,4358.4,4358.3,0.3141]
[1756996013146,9.6774,4358.4,4358.3,0.9651]
[1756996013449,5.5964,4358.4,4358.3,0.9651]
[1756996013643,8.77,4358.4,4358.3,0.9651]
[1756996013845,11.17881997,4358.4,4358.3,0.004]
[1756996014049,12.71241997,4358.4,4358.3,0.004]
[1756996014228,13.47149395,4358.4,4358.3,0.004]
[1756996014947,14.21309395,4358.4,4358.3,0.004]
[1756996015347,14.92279395,4358.4,4358.3,0.004]
[1756996017135,10.84279395,4358.4,4358.3,0.004]
[1756996017452,14.92279395,4358.4,4358.3,0.004]
[1756996017752,10.84279395,4358.4,4358.3,0.004]
[1756996018156,14.92279395,4358.4,4358.3,0.004]
[1756996018321,10.84279395,4358.4,4358.3,0.004]
[1756996018528,14.92279395,4358.4,4358.3,0.004]
[1756996018742,9.39149395,4358.4,4358.3,0.004]
[1756996018942,14.21309395,4358.4,4358.3,0.004]
[1756996019142,14.92279395,4358.4,4358.3,0.004]
[1756996022135,17.34279395,4358.4,4358.3,1e-08]
[1756996022336,3.08663056,4358.0,4357.9,0.004]
[1756996022536,16.55395193,4358.0,4357.9,0.004]
[1756996022737,17.98324953,4358.0,4357.9,0.004]
[1756996023252,18.09764953,4358.0,4357.9,0.004]
[1756996023942,16.64614953,4358.0,4357.9,0.004]
[1756996024161,12.86604953,4358.0,4357.9,0.004]
[1756996024348,16.94504953,4358.0,4357.9,0.004]
[1756996024548,12.86604953,4358.0,4357.9,0.004]
[1756996024781,16.94604953,4358.0,4357.9,0.004]
[1756996025472,17.39884953,4358.0,4357.9,0.004]
[1756996025673,16.94604953,4358.0,4357.9,0.004]
[1756996025841,17.39884953,4358.0,4357.9,0.004]
[1756996026048,17.64484953,4358.0,4357.9,0.004]
[1756996026253,17.39884953,4358.0,4357.9,0.004]
[1756996026577,16.64514953,4358.0,4357.9,0.004]
[1756996027559,12.86604953,4358.0,4357.9,0.004]
[1756996027862,17.39784953,4358.0,4357.9,0.004]
[1756996028078,16.94504953,4358.0,4357.9,0.004]
[1756996028384,12.56614953,4358.0,4357.9,0.004]
[1756996028591,12.4784,4358.0,4357.9,0.9972]
[1756996028789,8.3986,4358.0,4357.9,1.4458]
[1756996029091,10.2696,4358.0,4357.9,1.4458]
[1756996029293,13.2696,4358.0,4357.9,0.9972]
[1756996029466,15.56423056,4358.0,4357.9,0.2915]
[1756996029654,17.35010662,4358.0,4357.9,0.2915]
[1756996030991,17.65000662,4358.0,4357.9,0.004]
[1756996031205,17.35010662,4358.0,4357.9,0.2915]
[1756996031394,10.97647606,4358.0,4357.9,0.2915]
[1756996031595,10.97647606,4358.0,4357.9,0.9972]
[1756996031596,15.05547606,4358.0,4357.9,0.9972]
[1756996031801,17.35010662,4358.0,4357.9,0.9972]
[1756996032006,0.1144,4358.0,4357.9,0.9972]
[1756996032303,4.1924,4358.0,4357.9,1.4458]
[1756996033071,4.1924,4358.0,4357.9,3.74048321]
[1756996033692,4.1924,4358.0,4357.9,0.9972]
[1756996034301,4.1924,4358.0,4357.9,3.74048321]
[1756996034809,4.1924,4358.0,4357.9,0.9972]
[1756996035673,4.1924,4358.0,4357.9,3.29188321]
[1756996035879,4.1924,4358.0,4357.9,0.9972]
[1756996036780,8.45097056,4358.0,4357.9,0.004]
[1756996036980,11.45097056,4358.0,4357.9,0.004]
[1756996037416,12.43482208,4358.0,4357.9,0.004]
[1756996037711,12.14977056,4358.0,4357.9,0.004]
[1756996038119,12.43482208,4358.0,4357.9,0.004]
[1756996038411,2.71387056,4358.0,4357.9,0.004]
[1756996038577,7.88277056,4358.0,4357.9,0.004]
[1756996038982,8.33557056,4358.0,4357.9,0.004]
[1756996039204,7.88277056,4358.0,4357.9,0.004]
[1756996039406,7.58287056,4358.0,4357.9,0.004]
[1756996039800,11.33557056,4358.0,4357.9,0.004]
[1756996040005,12.03437056,4358.0,4357.9,0.004]
[1756996040299,12.31942208,4358.0,4357.9,0.004]
[1756996041093,6.08689386,4357.5,4357.4,0.004]
[1756996041299,11.00206529,4357.5,4357.4,0.004]
[1756996041512,12.45356529,4357.5,4357.4,0.004]
[1756996042319,12.45356529,4357.5,4357.3,0.004]
[1756996042320,12.45356529,4357.5,4356.8,0.00235681]
[1756996042526,3.08715721,4357.0,4356.8,0.00235681]
[1756996042832,15.44920989,4356.9,4356.8,0.00235681]
[1756996042996,19.16861786,4356.9,4356.8,0.00235681]
[1756996043199,11.34490797,4356.9,4356.8,0.00235681]
[1756996043405,11.37220989,4356.9,4356.8,0.99555681]
[1756996043730,11.37220989,4356.9,4356.8,0.28985681]
[1756996043731,15.44920989,4356.9,4356.8,0.28985681]
[1756996043919,11.37220989,4356.9,4356.8,0.28985681]
[1756996046013,12.15537332,4356.4,4356.3,1e-08]
[1756996046203,13.30697332,4356.4,4356.3,1e-08]
[1756996047017,9.22997332,4356.4,4356.3,1e-08]
[1756996047218,14.45951046,4356.4,4356.3,1e-08]
[1756996048315,14.57391046,4356.4,4356.3,1e-08]
[1756996048636,13.87511046,4356.4,4356.3,1e-08]
[1756996048835,5.25341046,4356.4,4356.3,1e-08]
[1756996049033,9.33041046,4356.4,4356.3,1e-08]
[1756996049208,12.33041046,4356.4,4356.3,1e-08]
[1756996049408,8.25341046,4356.4,4356.3,1e-08]
[1756996049609,5.8824,4356.4,4356.3,0.99320001]
[1756996049918,5.8824,4356.4,4356.3,0.28750001]
[1756996049919,11.96987332,4356.4,4356.3,0.28750001]
[1756996050113,4.8054,4356.4,4356.3,0.99320001]
[1756996050328,11.17787332,4356.4,4356.3,0.99320001]
[1756996050634,8.8824,4356.4,4356.3,0.99320001]
[1756996050935,4.8054,4356.4,4356.3,0.99320001]
[1756996051114,5.8824,4356.4,4356.3,1.43710001]
[1756996052037,1.8054,4356.4,4356.3,1.43710001]
[1756996052350,5.8824,4356.4,4356.3,1.43710001]
[1756996052545,5.8824,4356.4,4356.3,0.99320001]
[1756996052739,9.55811332,4356.4,4356.3,0.28750001]
[1756996052915,7.26264,4356.4,4356.3,0.28750001]
[1756996053116,6.6744,4356.4,4356.3,0.96690001]
[1756996053318,1.8054,4356.4,4356.3,1.41080001]
[1756996053535,5.8814,4356.4,4356.3,1.41080001]
[1756996053926,5.8814,4356.4,4356.3,3.70632602]
[1756996054126,1.8054,4356.4,4356.3,3.70632602]
[1756996054313,5.8806,4356.4,4356.3,3.70632602]
[1756996054807,5.8806,4356.4,4356.3,1.41080001]
[1756996055007,5.8806,4356.4,4356.3,3.70632602]
[1756996055748,5.8806,4356.4,4356.3,1.41080001]
[1756996055944,5.8806,4356.4,4356.3,3.70632602]
[1756996056651,5.8806,4356.4,4356.3,1.41080001]
[1756996056858,5.8806,4356.4,4356.3,0.96690001]
[1756996057055,5.8806,4356.4,4356.3,1e-08]
[1756996057255,6.69820663,4356.4,4356.3,0.31080001]
[1756996057455,5.8806,4356.4,4356.3,0.99020001]
[1756996058446,5.8806,4356.4,4356.3,0.31080001]
[1756996058759,5.8806,4356.4,4356.3,0.99020001]
[1756996059562,5.8806,4356.4,4356.3,0.31080001]
[1756996059932,5.8806,4356.4,4356.3,0.99020001]
[1756996060156,5.8806,4356.4,4356.3,1.43410001]
[1756996060462,5.8796,4356.4,4356.3,1.43410001]
[1756996060665,5.8796,4356.4,4356.3,3.72962602]
[1756996060838,1.8046,4356.4,4356.3,3.72962602]
[1756996061396,5.8796,4356.4,4356.3,3.72962602]
[1756996062084,5.8796,4356.4,4356.3,0.99020001]
[1756996062257,5.8796,4356.4,4356.3,3.28572602]
[1756996062578,5.8796,4356.4,4356.3,3.72962602]
[1756996063569,5.7652,4356.4,4356.3,0.99020001]
[1756996063777,5.7652,4356.4,4356.3,0.31080001]
[1756996064101,0.16643994,4357.0,4356.3,4.43410001]
[1756996064262,0.16643994,4357.0,4356.9,2.29520989]
[1756996064665,0.16643994,4357.0,4356.9,3.72930989]
[1756996065061,1.42143994,4357.0,4356.9,3.72930989]
[1756996066254,0.16643994,4357.0,4356.9,3.72930989]
[1756996067413,0.001,4357.3,4357.2,2.29505186]
[1756996067591,0.001,4357.3,4357.2,5.29505186]
[1756996067885,0.001,4357.3,4357.2,3.28525186]
[1756996068692,0.001,4357.3,4356.5,0.6794]
[1756996069197,1.691,4357.2,4356.3,1e-08]
[1756996069390,1.691,4357.2,4356.5,2.2954138]
[1756996069695,1.691,4357.2,4356.3,2.29552341]
[1756996069696,0.64981024,4357.1,4356.3,1e-08]
[1756996069895,4.073,4357.0,4356.4,2.29547332]
[1756996070098,4.073,4357.0,4356.6,2.29532962]
[1756996070395,4.073,4357.0,4356.5,2.29537713]
[1756996070596,4.073,4357.0,4356.7,2.29530966]
[1756996070789,0.21491024,4357.1,4356.3,0.67940001]
[1756996070990,4.073,4356.9,4356.3,0.67940001]
[1756996071527,1.691,4357.2,4356.8,0.3108]
[1756996071695,4.073,4357.1,4356.8,0.3108]
[1756996071990,4.073,4357.1,4357.0,2.29515603]
[1756996072184,4.073,4357.1,4356.9,2.29520978]
[1756996072484,4.073,4357.1,4356.3,1e-08]
[1756996072485,4.5079,4357.1,4356.3,1e-08]
[1756996072685,4.073,4357.1,4356.3,1e-08]
[1756996072884,4.073,4357.1,4356.7,2.2952889]
[1756996073116,4.5079,4357.1,4356.7,2.2952889]
[1756996073315,4.073,4357.1,4356.3,2.29547521]
[1756996073609,0.3063,4356.8,4356.3,1e-08]
[1756996073820,4.072,4356.7,4356.6,2.2953567]
[1756996074183,4.1864,4356.7,4356.5,2.29540489]
[1756996074384,4.072,4356.7,4356.5,2.29540489]
[1756996074585,0.1144,4356.6,4356.5,2.29542063]
[1756996075084,0.1144,4356.6,4356.5,2.60622063]
[1756996075085,4.1864,4356.6,4356.5,2.60622063]
[1756996075303,4.1864,4356.6,4356.5,2.29542063]
[1756996075494,0.1144,4356.6,4356.5,2.60622063]
[1756996075699,4.1864,4356.6,4356.5,3.28562063]
[1756996076287,4.1864,4356.6,4356.5,2.29542063]
[1756996076985,0.1144,4356.6,4356.5,3.28562063]
[1756996077188,4.1864,4356.6,4356.5,3.28562063]
[1756996077903,4.1864,4356.6,4356.5,2.60622063]
[1756996078415,4.1854,4356.6,4356.5,3.28562063]
[1756996079528,0.1144,4356.6,4356.5,3.28562063]
[1756996079720,0.1136,4356.6,4356.5,3.28562063]
[1756996080630,1.691,4357.2,4357.1,2.29510454]
[1756996080809,5.762,4357.2,4357.1,0.2968]
[1756996081011,1.8054,4357.2,4356.5,1.1143]
[1756996081195,0.1144,4356.8,4356.6,2.29536794]
[1756996081400,0.1144,4356.8,4356.7,2.29531526]
[1756996082115,0.4164,4356.8,4356.7,2.29531526]
[1756996082532,0.4164,4356.8,4356.4,2.29547093]
[1756996082826,4.07,4356.7,4356.4,2.29547332]
[1756996083229,4.07,4356.7,4356.3,1e-08]
[1756996083230,4.07,4356.7,4356.3,2.29551757]
[1756996083531,4.07,4356.7,4356.6,2.29536794]
[1756996083904,4.1844,4356.7,4356.6,2.29536794]
[1756996084501,0.1144,4356.7,4356.6,2.29536794]
[1756996084702,1.691,4357.2,4356.8,2.29522562]
[1756996085005,0.1144,4356.9,4356.8,2.29522562]
[1756996085705,4.1844,4356.9,4356.8,2.29522562]
[1756996086104,4.1844,4356.9,4356.5,0.004]
[1756996086330,4.07,4356.9,4356.6,2.29536794]
[1756996086601,0.1144,4356.6,4356.5,2.29942063]
[1756996086999,0.8822,4356.6,4356.5,0.004]
[1756996088108,1.5182,4356.6,4356.5,0.004]
[1756996088309,2.30654196,4356.6,4356.5,0.004]
[1756996089247,4.6241123,4356.6,4356.5,0.004]
[1756996089536,4.6019099,4356.6,4356.5,0.004]
[1756996090623,2.30654196,4356.6,4356.5,0.004]
[1756996091141,2.32874436,4356.6,4356.5,0.004]
[1756996092243,1.67054196,4356.6,4356.5,0.004]
[1756996092546,5.73854196,4356.6,4356.5,0.004]
[1756996092711,4.4844,4356.6,4356.5,0.004]
[1756996093219,0.4164,4356.6,4356.5,0.004]
[1756996093419,5.5862,4356.6,4356.5,0.004]
[1756996093618,4.9502,4356.6,4356.5,0.004]
[1756996094368,4.1824,4356.6,4356.5,3.21907012]
[1756996094537,0.1144,4356.6,4356.5,3.58446713]
[1756996094738,4.1824,4356.6,4356.5,4.01936713]
[1756996095061,0.1144,4356.6,4356.5,4.01936713]
[1756996095560,4.068,4356.8,4356.7,2.29531526]
[1756996095861,4.068,4356.8,4356.7,3.21501526]
[1756996096055,4.068,4356.8,4356.7,3.4988326]
[1756996096356,0.1144,4357.0,4356.9,2.29520989]
[1756996096556,4.1814,4357.0,4356.9,2.29520989]
[1756996096769,4.1814,4357.0,4356.9,3.64980989]
[1756996097059,1.691,4357.2,4357.1,2.29510454]
[1756996097240,1.691,4357.2,4357.1,3.58020155]
[1756996097453,5.758,4357.2,4357.1,3.58020155]
[1756996097640,1.691,4357.2,4357.1,3.58020155]
[1756996097840,5.758,4357.2,4357.1,3.58020155]
[1756996098051,1.691,4357.2,4357.1,3.58020155]
[1756996098250,5.758,4357.2,4357.1,3.58020155]
[1756996098453,0.001,4357.3,4357.2,2.29505186]
[1756996098652,4.068,4357.3,4357.2,3.65961971]
[1756996098852,0.001,4357.3,4357.2,3.9334692]
[1756996099259,0.001,4357.3,4357.2,4.0478692]
[1756996102276,0.001,4357.3,4357.2,3.6129692]
[1756996103076,0.001,4357.3,4357.2,4.0478692]
[1756996103691,0.001,4357.3,4357.2,7.0478692]
[1756996104977,1e-08,4357.8,4357.7,2.29478853]
[1756996105180,1e-08,4357.8,4357.7,20.88029238]
[1756996105476,0.00020001,4358.0,4357.9,2.29468321]
[1756996105780,0.00020001,4358.0,4357.9,9.38163004]
[1756996105982,0.00020001,4358.0,4357.9,10.71328321]
[1756996110489,0.026,4358.8,4358.1,2.29457791]
[1756996110800,1e-08,4358.8,4358.7,2.29426205]
[1756996110994,1e-08,4358.8,4358.7,9.66540467]
[1756996111194,1e-08,4358.8,4358.7,10.89546205]
[1756996112011,1e-08,4358.8,4358.7,10.98737941]
[1756996113435,1e-08,4358.8,4358.7,11.77937941]
[1756996113590,1e-08,4358.8,4358.7,7.47355826]
[1756996113784,1e-08,4358.8,4358.7,27.36288326]
[1756996114033,1.691,4360.4,4358.8,6.08620941]
[1756996114184,0.63840506,4360.5,4359.5,2.2938093]
[1756996114498,0.63840506,4360.5,4360.4,2.29336758]
[1756996114695,0.92610506,4360.5,4360.4,2.29336758]
[1756996115728,0.46200506,4360.5,4360.4,2.29336758]
[1756996115916,0.92610506,4360.5,4360.4,2.29336758]
[1756996117930,1.57620506,4360.5,4360.4,2.29336758]
[1756996118520,1.57620506,4360.5,4360.1,0.1144]
[1756996118727,0.92212051,4360.4,4360.2,2.29343714]
[1756996118921,0.1144,4360.4,4360.3,2.29342017]
[1756996119228,0.1144,4360.4,4360.0,2.2935326]
[1756996119229,1.5163,4360.4,4360.2,2.29345421]
[1756996119412,1.1142,4360.3,4360.1,2.29351212]
[1756996119612,1.4019,4360.2,4360.1,2.29351212]
[1756996120632,1.4019,4360.2,4359.9,2.29358158]
[1756996120935,1.4019,4360.2,4359.8,2.29367386]
[1756996120936,1.1142,4360.1,4359.8,2.29367386]
[1756996121113,0.2877,4359.9,4359.8,2.29367386]
[1756996121307,0.7518,4359.9,4359.8,2.29367386]
[1756996121738,1.4019,4359.9,4359.6,2.29376754]
[1756996121944,0.2877,4359.9,4359.3,0.1144]
[1756996122120,1.1142,4359.8,4359.3,0.1144]
[1756996122432,0.6501,4359.8,4359.7,2.2937358]
[1756996122632,0.9378,4359.8,4359.7,2.2937358]
[1756996122837,0.2877,4359.8,4359.7,2.2937358]
[1756996123337,0.7518,4359.8,4359.7,2.2937358]
[1756996124927,1.4019,4359.8,4359.7,2.2937358]
[1756996125642,1.55353,4359.8,4359.7,2.2937358]
[1756996126324,1.4019,4359.8,4359.7,2.2937358]
[1756996127242,1.4019,4359.8,4359.0,0.1144]
[1756996127438,1.4019,4359.8,4359.3,2.2939435]
[1756996127759,0.1144,4359.4,4359.3,2.2939435]
[1756996127911,1.5163,4359.4,4359.2,2.29399464]
[1756996128112,0.1144,4359.1,4359.0,2.29408527]
[1756996128346,0.8662,4359.1,4359.0,2.29408527]
[1756996130040,1.5163,4359.1,4359.0,2.29408527]
[1756996130438,1.5163,4359.1,4358.8,2.31920377]
[1756996130439,2.07333,4359.1,4358.9,2.29414213]
[1756996130751,1.1142,4359.0,4358.9,2.29414213]
[1756996131117,1.4019,4359.0,4358.9,2.29414213]
[1756996132166,0.1136,4359.1,4359.0,2.29410415]
[1756996132375,4.1676,4359.1,4359.0,2.29410415]
[1756996132560,4.1676,4359.1,4359.0,2.58030415]
[1756996132889,0.1136,4359.1,4359.0,2.29410415]
[1756996133057,0.4013,4359.1,4359.0,2.29410415]
[1756996133266,0.8654,4359.1,4359.0,2.29410415]
[1756996134477,0.4013,4359.1,4359.0,2.29410415]
[1756996134683,0.8654,4359.1,4359.0,2.29410415]
[1756996135472,4.9184,4359.1,4359.0,2.29410415]
[1756996136179,4.9184,4359.1,4359.0,2.58030415]
[1756996136180,4.1666,4359.1,4359.0,2.58030415]
[1756996136376,4.1666,4359.1,4359.0,2.29410415]
[1756996136704,0.1136,4359.1,4359.0,2.29410415]
[1756996136870,2.1551,4360.2,4359.9,2.29363058]
[1756996137075,0.2877,4360.0,4359.9,2.29363058]
[1756996137304,1.4019,4360.0,4359.0,0.1144]
[1756996137508,0.4641,4359.9,4359.0,0.1144]
[1756996137677,0.4641,4359.9,4359.1,0.02294051]
[1756996137878,2.1551,4360.2,4360.1,2.29352537]
[1756996138079,0.1144,4359.7,4359.1,0.1144]
[1756996138275,4.5151,4359.6,4359.1,0.1144]
[1756996138480,4.051,4359.6,4359.5,2.29384103]
[1756996138777,4.3387,4359.6,4359.5,2.29384103]
[1756996138977,4.3387,4359.6,4359.5,2.58004103]
[1756996138978,4.051,4359.6,4359.5,2.58004103]
[1756996139179,0.1144,4359.7,4359.6,2.29378842]
[1756996139385,4.1654,4359.7,4359.6,2.29378842]
[1756996139776,0.1144,4359.7,4359.6,2.29378842]
[1756996139976,4.1654,4359.7,4359.6,2.29378842]
[1756996140203,0.1144,4359.7,4359.6,2.57998842]
[1756996140703,0.4142,4359.7,4359.6,2.29378842]
[1756996140907,0.868,4359.7,4359.6,2.29378842]
[1756996141276,4.1654,4359.7,4359.6,2.59278842]